bitfinex-derivatives/quotes_ETHF0:USTF0_20250804
["timestamp","ask_amount","ask_price","bid_price","bid_amount"]
[1754274027659,2.0284,3536.5,3536.4,3.2078]
[1754274027864,2.0284,3536.9,3536.0,3.2078]
[1754274028058,2.0284,3536.6,3536.0,3.77334]
[1754274028260,1.273,3536.6,3536.0,3.77334]
[1754274028563,0.7554,3536.6,3536.5,3.2078]
[1754274029369,0.7326,3537.0,3536.7,0.56543]
[1754274029569,2.7554,3536.8,3536.7,0.56543]
[1754274029771,0.7554,3536.8,3536.7,3.77323]
[1754274030470,1.348,3537.3,3536.7,3.2078]
[1754274030771,0.7554,3537.3,3537.2,3.2078]
[1754274030965,1.488,3537.3,3537.2,3.2078]
[1754274031266,1.91341,3536.9,3536.8,3.2078]
[1754274031464,3.3764,3536.9,3536.8,3.2078]
[1754274032170,0.7554,3536.9,3536.8,3.2078]
[1754274032670,3.3764,3536.9,3536.8,3.2078]
[1754274036770,23.007,3538.0,3536.0,4.98609199]
[1754274036771,1.24294732,3540.6,3538.2,3.2078]
[1754274037073,3.77267,3540.3,3539.3,3.2078]
[1754274037268,1.273,3539.7,3539.3,3.2078]
[1754274037468,0.7326,3539.5,3539.3,3.2078]
[1754274037769,1.53793153,3539.4,3539.3,3.2078]
[1754274038071,2.01730962,3539.4,3539.3,3.2078]
[1754274038469,24.49130962,3539.4,3539.3,3.2078]
[1754274038766,25.24370962,3539.4,3539.3,3.2078]
[1754274039174,2.0284,3539.4,3539.3,3.2078]
[1754274039370,24.5164,3539.4,3539.3,3.2078]
[1754274040872,2.0284,3539.4,3539.3,3.2078]
[1754274041073,24.5224,3539.4,3539.3,3.2078]
[1754274041268,2.0284,3539.4,3539.3,3.2078]
[1754274041468,24.4894,3539.4,3539.3,3.2078]
[1754274041870,24.4924,3539.4,3539.3,3.2078]
[1754274042477,24.4984,3539.4,3539.3,3.2078]
[1754274042669,1.488,3539.4,3539.3,3.2078]
[1754274042871,24.5074,3539.4,3539.3,3.2078]
[1754274043565,2.59343,3539.3,3538.9,1.79490365]
[1754274043768,0.56506,3539.1,3538.5,3.77295]
[1754274043974,1.27221,3538.8,3538.5,3.2078]
[1754274044173,2.5524,3538.5,3538.0,2.771]
[1754274044471,2.5524,3538.2,3538.0,2.771]
[1754274044665,3.11762,3538.1,3537.6,3.2078]
[1754274044976,43.9098,3538.4,3537.6,3.2078]
[1754274044977,3.11765,3537.9,3537.6,3.2078]
[1754274045179,2.5524,3537.8,3537.6,3.2078]
[1754274045379,2.5524,3537.7,3537.6,3.2078]
[1754274046480,25.1734,3537.7,3537.6,3.2078]
[1754274046779,25.1734,3537.7,3537.6,4.4291]
[1754274048371,0.9128,3538.0,3537.8,1.2213]
[1754274048576,22.604,3537.9,3537.7,0.3856]
[1754274048777,22.604,3537.9,3537.8,1.2213]
[1754274049077,0.9128,3538.0,3537.7,0.95087]
[1754274049281,0.9128,3538.0,3537.9,1.2213]
[1754274049482,23.5208,3538.0,3537.9,1.2213]
[1754274050172,0.56525,3537.9,3537.6,3.2078]
[1754274050379,3.11765,3537.9,3537.7,1.2213]
[1754274050580,24.4533,3537.8,3537.7,1.2213]
[1754274050982,23.5208,3537.8,3537.7,1.2213]
[1754274051988,23.5088,3537.8,3537.7,1.78658]
[1754274053274,40.702,3538.4,3538.0,1.78653]
[1754274053582,40.702,3538.4,3537.4,4.98609199]
[1754274053583,23.4818,3538.3,3538.2,4.4291]
[1754274055086,25.1214,3538.3,3538.2,4.4291]
[1754274055592,25.1254,3538.3,3538.2,4.4291]
[1754274055886,25.69058,3538.3,3538.2,4.4291]
[1754274056189,25.1254,3538.3,3538.2,4.4291]
[1754274057291,25.28980986,3538.3,3538.2,4.4291]
[1754274057491,25.0684,3538.3,3538.2,4.4291]
[1754274058194,26.0314803,3538.3,3538.2,4.4291]
[1754274058791,27.7364803,3538.3,3538.2,6.0653]
[1754274059789,27.73665519,3538.3,3538.2,6.0653]
[1754274060393,27.73665519,3538.3,3538.2,3.2078]
[1754274060993,27.73665519,3538.3,3537.2,3.2078]
[1754274060994,2.5524,3537.6,3537.2,3.2078]
[1754274061292,2.5524,3537.4,3537.3,0.6916]
[1754274061493,2.5524,3537.3,3537.2,3.2078]
[1754274062496,22.471,3537.5,3536.8,3.2078]
[1754274062497,2.5524,3537.2,3536.8,3.2078]
[1754274062698,1.8453,3536.9,3536.4,3.2078]
[1754274062891,0.5654,3537.0,3536.0,3.2078]
[1754274063095,0.9325,3536.6,3536.5,0.9159]
[1754274063298,23.4275,3536.6,3536.5,0.9159]
[1754274063497,23.4275,3536.6,3536.5,1.6075]
[1754274063693,25.0474,3536.6,3536.5,1.6075]
[1754274063894,25.0614,3536.6,3536.5,1.6075]
[1754274064594,0.56536,3537.2,3536.7,0.56544]
[1754274064791,0.9128,3537.0,3536.9,1.6075]
[1754274065702,23.4018,3537.0,3536.9,1.6075]
[1754274066593,0.9128,3537.0,3536.9,1.6075]
[1754274066792,23.3978,3537.0,3536.9,1.6075]
[1754274067701,23.3878,3537.0,3536.9,1.6075]
[1754274068389,0.9128,3537.0,3536.9,1.6075]
[1754274068592,3.2078,3537.9,3537.4,0.56531]
[1754274068792,23.4087285,3537.8,3537.6,1.0774]
[1754274068997,23.4087285,3537.8,3537.7,1.9933]
[1754274068998,22.443,3537.8,3537.7,1.9933]
[1754274069199,23.3558,3537.8,3537.7,1.6075]
[1754274069994,0.9128,3537.8,3537.7,1.6075]
[1754274070190,23.3698,3537.8,3537.7,1.6075]
[1754274070398,23.3618,3537.8,3537.7,1.6075]
[1754274071297,23.3618,3537.8,3537.7,3.2437]
[1754274071599,0.9128,3537.8,3537.7,3.2437]
[1754274071792,23.3578,3537.8,3537.7,3.2437]
[1754274072198,0.9128,3537.8,3537.7,3.2437]
[1754274072503,3.3249,3538.2,3538.1,3.80891]
[1754274072702,25.95822884,3538.2,3538.1,3.80891]
[1754274073297,25.95022884,3538.2,3538.1,3.80891]
[1754274073902,26.89882884,3538.2,3538.1,3.2437]
[1754274074600,4.49582884,3538.2,3538.1,3.2437]
[1754274075001,26.87682884,3538.2,3538.1,3.2437]
[1754274076007,4.49582884,3538.2,3538.1,3.2437]
[1754274076203,26.87082884,3538.2,3538.1,3.2437]
[1754274076402,4.49582884,3538.2,3538.1,3.2437]
[1754274076807,26.84182884,3538.2,3537.9,0.56524]
[1754274077000,1.7451,3538.0,3537.9,0.56524]
[1754274077306,4.3521,3537.9,3537.8,0.56525]
[1754274077507,4.3521,3537.7,3537.6,3.2078]
[1754274077707,26.6941,3537.7,3537.6,3.2078]
[1754274078811,2.607,3537.6,3537.4,2.25752]
[1754274079009,3.4358,3537.5,3537.4,2.8512]
[1754274079206,4.3521,3537.5,3537.4,2.8512]
[1754274079710,4.3521,3537.5,3537.4,3.4675]
[1754274081505,26.6701,3537.5,3537.4,3.4675]
[1754274082812,26.6701,3537.5,3537.4,1.159]
[1754274083005,26.6701,3537.5,3537.2,3.8658]
[1754274083006,2.6937,3537.3,3537.2,3.8658]
[1754274083204,4.3521,3537.3,3537.2,3.8658]
[1754274083408,4.3521,3536.9,3536.8,4.8744]
[1754274084010,4.3521,3536.9,3536.8,6.6753]
[1754274084411,3.4035,3536.9,3536.8,6.6753]
[1754274087104,4.3521,3536.9,3536.8,6.6753]
[1754274087613,26.5651,3536.9,3536.8,6.6753]
[1754274087915,4.3521,3536.9,3536.8,6.6753]
[1754274088216,26.5651,3536.9,3536.8,6.6753]
[1754274088809,26.5651,3536.9,3536.8,5.3754]
[1754274089009,26.5651,3536.9,3536.8,6.6753]
[1754274089912,26.5281,3536.9,3536.8,6.6753]
[1754274090515,26.5231,3536.9,3536.8,6.6753]
[1754274092412,1.30743,3537.4,3537.1,1.3416]
[1754274092612,1.122,3537.4,3537.3,3.4675]
[1754274092912,6.6436,3537.8,3537.7,3.4675]
[1754274093215,29.90682903,3537.8,3537.7,3.4675]
[1754274093605,29.6999,3537.8,3537.7,3.4675]
[1754274096214,26.4921,3537.8,3537.7,3.4675]
[1754274096414,4.3521,3537.8,3537.7,3.4675]
[1754274096621,26.4391,3537.8,3537.7,3.4675]
[1754274096918,26.4311,3537.8,3537.7,0.658]
[1754274097117,23.8241,3537.8,3537.5,0.5653]
[1754274097319,4.3521,3537.7,3537.6,2.1676]
[1754274097519,4.3521,3537.7,3537.6,3.4675]
[1754274100521,26.3851,3537.7,3537.6,3.4675]
[1754274100717,22.9493,3537.7,3537.5,0.5653]
[1754274100925,4.3521,3537.6,3537.5,4.0328]
[1754274101923,1.6584,3537.6,3537.5,4.0328]
[1754274102222,2.0383,3537.9,3537.8,1.796]
[1754274102422,24.0353,3537.9,3537.8,5.00786]
[1754274102923,2.0383,3537.9,3537.8,5.00786]
[1754274103119,24.0383,3537.9,3537.8,5.00786]
[1754274103515,2.7804,3538.3,3538.2,1.7032]
[1754274103717,2.0383,3538.3,3538.2,3.3156]
[1754274103916,2.66448925,3539.7,3538.4,0.56515]
[1754274104114,1.0,3541.0,3539.6,8.19389199]
[1754274104315,0.56488,3540.2,3539.6,3.2078]
[1754274104513,1.749,3540.0,3539.9,3.2078]
[1754274105023,1.55786,3539.7,3539.5,3.2078]
[1754274105222,24.038,3539.6,3539.5,3.2078]
[1754274106021,24.9415,3539.6,3539.5,3.2078]
[1754274106526,24.9415,3539.6,3537.6,15.287]
[1754274106527,0.56501,3539.4,3539.1,3.2078]
[1754274106728,3.23554,3539.2,3539.1,3.2078]
[1754274107925,3.23554,3539.2,3539.1,2.57717]
[1754274108119,0.5651,3538.8,3538.7,3.2078]
[1754274108336,25.5106,3538.8,3538.7,3.2078]
[1754274109325,3.23568,3538.3,3538.2,3.2078]
[1754274109531,25.54668,3538.3,3538.2,3.2078]
[1754274112226,25.54668,3538.3,3538.2,2.53377]
[1754274112431,0.56534,3537.3,3537.2,4.98609199]
[1754274112632,1.41307,3538.1,3537.2,4.98609199]
[1754274112633,0.56533,3537.4,3537.2,8.19389199]
[1754274113326,0.56529,3537.7,3537.2,8.19389199]
[1754274113524,0.56531,3537.5,3537.2,4.98609199]
[1754274113833,0.56531,3537.5,3537.4,3.2078]
[1754274114333,22.86129,3537.7,3537.4,3.2078]
[1754274114834,23.78279,3537.7,3537.4,3.2078]
[1754274115531,23.77879,3537.7,3537.4,3.2078]
[1754274115930,1.48679,3537.7,3537.4,3.2078]
[1754274116133,22.84929,3537.7,3537.4,3.2078]
[1754274116328,0.56531,3537.5,3537.4,3.2078]
[1754274116530,1.48681,3537.5,3537.4,3.2078]
[1754274116724,3.13941,3537.5,3537.4,3.2078]
[1754274117329,2.47971,3537.5,3537.4,3.2078]
[1754274117633,1.48681,3537.5,3537.4,3.2078]
[1754274118030,22.284,3537.7,3537.4,3.2078]
[1754274118225,0.56528,3537.8,3537.4,3.77312]
[1754274118427,0.56528,3537.8,3537.7,4.98609199]
[1754274119028,1.48678,3537.8,3537.7,4.98609199]
[1754274119337,0.9215,3537.8,3537.7,4.98609199]
[1754274122432,22.228,3537.9,3537.4,3.2078]
[1754274122743,0.9215,3537.4,3537.3,0.56534]
[1754274122932,1.9144,3537.4,3537.3,3.77314]
[1754274123132,0.9215,3537.4,3537.3,3.77314]
[1754274124030,1.55819,3537.7,3537.3,3.77314]
[1754274124231,0.5853,3537.9,3537.3,3.2078]
[1754274124430,0.9215,3538.1,3538.0,0.56522]
[1754274124632,0.9215,3538.1,3537.8,3.2078]
[1754274124633,1.15051,3538.1,3537.8,3.2078]
[1754274124830,0.9215,3537.9,3537.8,3.2078]
[1754274125033,0.9215,3537.9,3537.8,3.77305]
[1754274126834,1.9144,3537.9,3537.8,3.77305]
[1754274128236,3.6459,3537.9,3537.8,3.77305]
[1754274129142,4.402,3537.9,3537.8,3.77305]
[1754274129642,4.402,3537.9,3537.8,3.2078]
[1754274130841,1.22501,3537.5,3537.4,3.2078]
[1754274131035,4.96731,3537.5,3537.4,3.2078]
[1754274131435,4.96738,3537.1,3537.0,3.2078]
[1754274132938,1.7315,3536.7,3536.6,3.2078]
[1754274133140,4.402,3536.7,3536.6,3.2078]
[1754274134436,4.402,3536.7,3536.6,3.3572]
[1754274134637,4.402,3536.7,3536.6,4.1135]
[1754274135441,0.9215,3536.7,3536.6,4.1135]
[1754274135741,0.9215,3536.7,3536.6,4.1179]
[1754274135944,24.0419,3537.1,3537.0,0.5583]
[1754274136146,26.8436,3537.1,3537.0,0.9028]
[1754274136948,26.8436,3537.1,3537.0,4.1106]
[1754274137250,26.8436,3537.1,3537.0,3.9138]
[1754274137443,5.23297,3537.1,3537.0,3.2078]
[1754274137642,26.8326,3537.1,3537.0,3.2078]
[1754274137843,4.6676,3537.1,3537.0,3.2078]
[1754274138044,26.8346,3537.1,3537.0,3.3555]
[1754274139548,26.8346,3537.1,3537.0,3.3625]
[1754274139745,26.8346,3537.1,3537.0,3.9138]
[1754274141250,4.6676,3537.1,3537.0,3.9138]
[1754274141454,26.7716,3537.1,3537.0,3.9138]
[1754274141648,4.6676,3537.1,3537.0,3.9138]
[1754274141849,26.7716,3537.1,3537.0,3.9138]
[1754274142754,4.6676,3537.1,3537.0,3.9138]
[1754274143057,25.9624,3537.1,3537.0,4.1106]
[1754274143855,0.9343,3537.1,3537.0,4.115]
[1754274144653,2.6481,3538.0,3537.9,0.56524]
[1754274144848,2.6481,3538.0,3537.9,1.46804]
[1754274145055,22.062,3538.0,3537.9,1.46804]
[1754274145250,22.9963,3538.0,3537.9,1.46804]
[1754274145858,22.9963,3538.0,3537.9,4.67584]
[1754274146853,25.9474,3538.0,3537.9,4.67584]
[1754274147055,26.7296,3538.0,3537.9,4.67584]
[1754274147455,26.7296,3538.0,3537.9,3.2078]
[1754274147654,27.29483,3538.0,3537.9,2.1006]
[1754274148362,26.7296,3538.0,3537.8,0.56525]
[1754274148555,4.6676,3537.9,3537.8,0.56525]
[1754274149061,4.6676,3537.7,3537.6,0.56529]
[1754274150062,22.9703,3537.7,3537.6,2.65149]
[1754274150360,0.9343,3537.7,3537.6,2.65149]
[1754274151155,0.9343,3537.7,3537.6,2.65589]
[1754274152258,0.9343,3537.7,3537.6,2.65149]
[1754274153859,0.9343,3537.7,3537.6,2.65589]
[1754274155558,3.7333,3538.1,3538.0,0.56523]
[1754274155764,3.7333,3538.1,3538.0,2.65143]
[1754274156263,4.6676,3538.1,3538.0,2.65143]
[1754274157259,4.6676,3538.1,3538.0,1.25903]
[1754274157665,4.6676,3538.1,3538.0,0.56523]
[1754274160761,1.8674,3538.0,3537.3,1.41336]
[1754274160963,4.6676,3537.9,3537.8,1.18496]
[1754274161168,4.6676,3537.9,3537.8,8.11557647]
[1754274170270,1.8659,3537.9,3537.8,8.11557647]
[1754274171570,2.9184,3537.9,3537.8,8.11557647]
[1754274171872,4.6693,3537.9,3537.8,8.11557647]
[1754274174474,1.8659,3537.9,3537.8,8.11557647]
[1754274174677,2.8806,3538.3,3538.2,5.2583]
[1754274174879,1.8281,3538.3,3538.2,8.24501647]
[1754274175480,1.1436,3538.3,3538.2,8.24501647]
[1754274175780,7.8393,3538.9,3538.8,5.2582]
[1754274175978,30.346462,3538.9,3538.8,5.2582]
[1754274176180,30.346462,3538.9,3538.8,4.1681]
[1754274176576,8.586462,3538.9,3538.8,4.1681]
[1754274176772,3.2078,3538.9,3538.8,5.2582]
[1754274177374,0.6207,3539.2,3539.1,2.43416]
[1754274177573,0.6207,3539.2,3539.1,8.24487647]
[1754274177975,1.8281,3539.2,3539.1,8.24487647]
[1754274178175,4.6315,3539.2,3539.1,3.40486]
[1754274178473,4.6315,3539.2,3539.1,8.24487647]
[1754274179683,1.1436,3539.5,3539.4,5.25811]
[1754274179873,0.6207,3539.5,3539.4,8.24482647]
[1754274180385,6.0884,3540.0,3539.9,4.16793]
[1754274180574,7.8393,3540.0,3539.9,5.25803]
[1754274181176,4.3514,3540.0,3539.9,5.25803]
[1754274181375,3.2078,3540.0,3539.9,5.25803]
[1754274181576,3.8285,3540.0,3539.9,5.25803]
[1754274182782,0.6207,3540.0,3539.9,5.25803]
[1754274183184,2.8806,3540.0,3539.9,5.25803]
[1754274183784,4.6315,3540.0,3539.9,5.25803]
[1754274184774,4.6315,3540.0,3539.9,4.6931]
[1754274185385,4.6315,3539.9,3539.8,4.16794]
[1754274185575,4.6315,3539.9,3539.8,5.25804]
[1754274186881,4.6315,3539.9,3539.8,0.56494]
[1754274187077,4.6315,3539.8,3539.7,2.15835]
[1754274187386,4.6315,3539.8,3539.7,0.56495]
[1754274188475,4.6315,3539.8,3539.6,0.56497]
[1754274188680,4.6315,3539.7,3539.6,0.56497]
[1754274189685,3.2078,3540.2,3539.6,5.81071647]
[1754274189882,5.1641,3540.2,3540.1,8.24471647]
[1754274190082,6.7868,3540.2,3540.1,8.24471647]
[1754274190279,7.8393,3540.2,3540.1,8.24471647]
[1754274191883,7.8393,3540.2,3540.1,5.258]
[1754274192084,7.8393,3540.2,3540.1,2.434]
[1754274192384,7.8393,3540.2,3540.1,5.258]
[1754274192585,7.8393,3540.2,3540.1,8.24471647]
[1754274193987,7.8393,3540.2,3540.1,1.8691]
[1754274195592,7.8393,3540.2,3540.1,0.6227]
[1754274197099,1.7493,3540.0,3539.9,0.56493]
[1754274197391,4.5271,3540.0,3539.9,0.56493]
[1754274197592,4.0304,3539.9,3539.8,0.56494]
[1754274197891,4.5271,3539.8,3539.7,0.56495]
[1754274198387,4.5271,3539.8,3539.1,4.62043]
[1754274198388,1.7493,3539.2,3539.1,3.77286]
[1754274198585,4.5271,3539.2,3539.1,3.77286]
[1754274198786,4.5271,3539.2,3539.1,5.57726]
[1754274198997,4.5271,3539.2,3539.1,8.31716]
[1754274199697,4.5271,3539.5,3539.4,2.36941]
[1754274199899,4.5271,3539.5,3539.4,4.35081]
[1754274200084,4.5271,3539.5,3539.4,5.10931]
[1754274200694,1.7493,3539.5,3539.4,4.09221]
[1754274200902,3.2078,3539.8,3539.3,2.98671647]
[1754274200903,4.5271,3539.8,3539.7,5.10926]
[1754274201092,4.5271,3539.8,3539.7,8.09597647]
[1754274202594,3.5901,3539.8,3539.7,8.09597647]
[1754274202888,4.5271,3539.8,3539.7,8.09597647]
[1754274203289,5.7151,3540.2,3540.1,5.1092]
[1754274203794,7.7349,3540.2,3540.1,5.1092]
[1754274205504,7.7349,3540.2,3540.1,0.5909]
[1754274205801,4.5271,3540.1,3540.0,0.5649]
[1754274205993,4.5271,3540.1,3539.9,0.56492]
[1754274206189,4.5271,3540.0,3539.9,0.56492]
[1754274206794,1.7493,3540.0,3539.8,0.56494]
[1754274206995,4.5271,3539.9,3539.8,0.56494]
[1754274207994,4.5271,3539.9,3539.8,1.15584]
[1754274208905,4.5271,3539.9,3539.8,0.5909]
[1754274210306,4.5271,3539.9,3539.8,2.7687]
[1754274210505,4.5271,3539.9,3539.8,3.5272]
[1754274210702,4.5271,3539.9,3539.8,4.5443]
[1754274213807,4.5271,3539.9,3539.8,0.5909]
[1754274214512,1.7493,3540.0,3539.9,5.10923]
[1754274214812,4.5271,3540.0,3539.9,5.10923]
[1754274216715,3.2078,3540.2,3540.1,5.1092]
[1754274216914,3.2078,3540.2,3540.1,8.09591647]
[1754274217602,1.8437,3540.4,3540.3,2.36927]
[1754274217807,4.5271,3540.4,3540.3,5.10917]
[1754274218707,1.7493,3540.5,3540.4,2.36925]
[1754274218908,4.5271,3540.5,3540.4,2.36925]
[1754274219308,4.5271,3540.5,3540.4,5.10915]
[1754274219909,2.8321,3540.5,3540.4,5.10915]
[1754274220110,4.5271,3540.5,3540.4,2.36925]
[1754274220313,4.5271,3540.5,3540.4,1.8044]
[1754274220512,2.7778,3540.4,3540.3,0.56486]
[1754274220809,4.5271,3540.3,3540.2,1.52918]
[1754274221015,4.5271,3540.3,3540.2,2.87858]
[1754274221216,4.5271,3540.3,3540.2,5.10918]
[1754274222212,1.7493,3540.3,3540.2,5.10918]
[1754274222819,2.8321,3540.5,3540.4,5.10915]
[1754274223517,1.7493,3540.5,3540.4,5.10915]
[1754274224018,4.4259,3540.5,3540.4,5.10915]
[1754274224713,4.4375,3540.5,3540.4,5.10915]
[1754274225114,3.2078,3540.6,3540.4,5.10915]
[1754274225415,3.2078,3540.6,3540.5,7.57471647]
[1754274228013,4.4681,3540.6,3540.5,7.57471647]
[1754274228219,7.6758,3540.6,3540.5,7.57471647]
[1754274230212,7.6758,3540.6,3540.5,4.588]
[1754274231827,3.2078,3540.6,3540.5,4.588]
[1754274233424,3.7929,3540.6,3540.5,4.588]
[1754274233626,4.7962,3540.6,3540.5,4.588]
[1754274233824,7.6758,3540.6,3540.5,4.588]
[1754274234525,4.468,3540.6,3540.5,4.588]
[1754274234722,0.5311,3540.7,3540.6,2.43582]
[1754274234928,4.468,3540.7,3540.6,8.13953647]
[1754274235517,4.468,3540.7,3540.6,7.34253647]
[1754274235717,5.468,3541.0,3540.9,5.15277]
[1754274236317,1.0,3541.0,3540.9,5.15277]
[1754274236521,5.468,3541.0,3540.9,5.15277]
[1754274236720,5.468,3541.0,3540.9,2.43577]
[1754274236921,5.468,3541.0,3540.9,5.15277]
[1754274239027,5.468,3541.0,3540.9,2.43577]
[1754274239626,5.468,3541.0,3540.9,5.15277]
[1754274242535,1.5851,3541.0,3540.9,5.15277]
[1754274242936,4.7928,3541.0,3540.9,5.15277]
[1754274243136,5.468,3541.0,3540.9,5.15277]
[1754274244029,5.468,3541.0,3540.3,2.53610057]
[1754274244030,1.0033,3540.9,3540.7,0.5648]
[1754274244232,3.4647,3540.8,3540.7,0.5648]
[1754274244431,4.468,3540.7,3540.6,0.56481]
[1754274244631,2.6766,3540.6,3540.3,3.78371647]
[1754274244836,4.468,3540.2,3540.1,7.68900057]
[1754274245131,4.468,3540.2,3540.1,5.1529]
[1754274246035,3.77261,3540.7,3540.6,4.588]
[1754274246036,7.6758,3540.7,3540.6,4.588]
[1754274246236,4.9992,3540.7,3540.6,7.57471647]
[1754274246436,7.6758,3540.7,3540.6,7.57471647]
[1754274246631,4.468,3540.7,3540.6,7.57471647]
[1754274247032,4.468,3540.7,3540.5,0.56482]
[1754274247240,3.4647,3540.7,3540.6,4.588]
[1754274247833,4.468,3540.7,3540.6,4.588]
[1754274248835,4.468,3540.7,3540.5,3.55153647]
[1754274249239,4.468,3540.6,3540.5,3.55153647]
[1754274249438,4.468,3540.6,3540.5,0.56482]
[1754274249841,4.468,3540.6,3540.5,1.19112]
[1754274250045,4.468,3540.6,3540.5,4.17322]
[1754274250239,4.468,3540.6,3540.5,0.56482]
[1754274251234,4.468,3540.6,3540.5,1.19112]
[1754274252036,4.468,3540.6,3540.5,0.6263]
[1754274252239,1.7914,3540.6,3540.4,0.56484]
[1754274252438,3.2078,3540.9,3540.4,0.56484]
[1754274252439,4.468,3540.5,3540.4,4.17324]
[1754274252630,4.468,3540.5,3540.4,5.15284]
[1754274252941,2.7895,3540.5,3540.4,8.13955647]
[1754274253133,4.468,3540.5,3540.4,8.13955647]
[1754274254642,3.2078,3540.9,3540.6,0.56481]
[1754274254843,4.5209,3540.7,3540.6,5.08211]
[1754274255544,3.2078,3540.9,3540.4,2.98671647]
[1754274255545,3.2078,3540.9,3540.8,2.36979]
[1754274255744,3.2078,3540.9,3540.8,8.06880647]
[1754274256039,5.9945,3540.9,3540.8,8.06880647]
[1754274256245,4.5209,3540.9,3540.8,5.08209]
[1754274258350,1.6352,3541.0,3540.9,4.5173]
[1754274259246,2.6353,3541.0,3540.9,4.5173]
[1754274259448,4.5631,3541.0,3540.9,4.5173]
[1754274259645,5.5209,3541.0,3540.9,4.5173]
[1754274261047,1.0,3541.0,3540.9,4.5173]
[1754274263458,7.7287,3541.9,3541.8,5.08193]
[1754274263659,7.7287,3541.9,3541.8,8.06864647]
[1754274264153,4.5209,3541.9,3541.8,8.06864647]
[1754274269353,0.9578,3541.8,3541.2,6.19451647]
[1754274269554,4.5209,3541.3,3541.2,5.86972]
[1754274269855,4.5209,3541.3,3541.2,1.20162]
[1754274270255,4.5209,3541.3,3541.2,0.56472]
[1754274270651,4.5209,3541.3,3541.2,5.08202]
[1754274271153,3.5631,3541.6,3541.5,5.08197]
[1754274271454,4.5209,3541.6,3541.5,8.06868647]
[1754274272656,3.5208,3541.6,3541.5,8.06868647]
[1754274272852,3.2078,3542.2,3542.0,0.5646]
[1754274273060,6.7286,3542.2,3542.1,7.50401647]
[1754274273257,5.9945,3542.2,3542.1,7.50401647]
[1754274273552,3.2078,3542.2,3542.1,7.50401647]
[1754274273854,1.0,3542.4,3542.3,1.805]
[1754274274156,1.0,3542.4,3542.3,4.5173]
[1754274274353,5.5209,3542.4,3542.3,4.5173]
[1754274274755,2.7866,3542.4,3542.3,4.5173]
[1754274274955,1.0,3542.4,3542.3,4.5173]
[1754274276248,1.6352,3542.4,3542.3,4.5173]
[1754274276450,5.5209,3542.4,3542.3,4.5173]
[1754274277947,1.0,3542.4,3542.3,4.5173]
[1754274278955,1.0,3542.4,3542.3,7.7251]
[1754274279662,3.7867,3542.4,3542.3,7.7251]
[1754274279961,5.5209,3542.4,3542.3,7.7251]
[1754274280154,5.5209,3542.4,3542.3,10.71181647]
[1754274280351,5.5209,3542.4,3542.3,7.49311647]
[1754274281161,5.5209,3542.4,3542.3,7.50401647]
[1754274281461,1.0,3542.4,3542.3,7.50401647]
[1754274284061,1.0,3542.4,3542.3,10.71181647]
[1754274286261,3.2078,3543.2,3542.3,10.71181647]
[1754274286563,3.2078,3543.2,3542.1,0.2844918]
[1754274286564,1.8353,3543.2,3543.1,8.04543647]
[1754274286862,4.5513,3543.2,3543.1,8.04543647]
[1754274287054,4.5513,3543.2,3543.1,5.83523647]
[1754274287260,4.5513,3543.2,3543.1,5.32703647]
[1754274287562,5.4503,3543.5,3543.4,5.05867]
[1754274287863,0.899,3543.5,3543.4,8.04538647]
[1754274288063,3.7343,3544.0,3543.9,2.34019]
[1754274288259,6.4503,3544.0,3543.9,8.04530647]
[1754274289055,1.899,3544.0,3543.9,8.04530647]
[1754274290764,0.66135,3544.0,3543.9,8.04530647]
[1754274291556,0.42335,3544.0,3543.9,8.04530647]
[1754274292161,1e-05,3544.0,3543.9,8.04530647]
[1754274294458,0.23801,3544.0,3543.9,8.04530647]
[1754274294963,1e-05,3544.0,3543.9,8.04530647]
[1754274295667,0.6315,3544.5,3544.4,2.34012]
[1754274295870,0.6315,3544.5,3544.4,8.04523647]
[1754274296271,1.8353,3544.5,3544.4,8.04523647]
[1754274297068,4.5513,3544.7,3544.6,5.05848]
[1754274300270,4.5513,3544.7,3544.4,2.98671647]
[1754274300490,4.5513,3544.6,3544.5,22.2482]
[1754274300672,4.5513,3544.6,3544.5,22.8939]
[1754274300873,0.6315,3544.6,3544.5,28.6152]
[1754274301170,4.5513,3544.6,3544.5,29.1794]
[1754274301369,4.5513,3544.6,3544.5,29.9503]
[1754274301564,3.77186,3545.4,3545.0,0.56412]
[1754274301768,4.5513,3545.1,3545.0,4.19653647]
[1754274302372,4.5513,3545.1,3545.0,3.55083647]
[1754274302767,3.2078,3545.4,3544.7,0.9938]
[1754274302768,1.327,3545.0,3544.9,0.56413]
[1754274302971,2.716,3544.9,3544.7,2.98671647]
[1754274303174,4.5513,3544.8,3544.7,2.98671647]
[1754274303380,4.5513,3544.8,3544.7,3.55088647]
[1754274305177,4.5513,3544.8,3544.7,4.19658647]
[1754274305976,4.5513,3544.8,3544.7,22.28217]
[1754274306866,3.32317,3545.4,3544.9,0.56413]
[1754274307071,0.56409,3545.3,3544.9,0.56413]
[1754274307276,1.801,3545.0,3544.9,4.50454647]
[1754274307678,1.801,3545.0,3544.9,1.51783]
[1754274308073,1.801,3545.0,3544.9,0.9537]
[1754274308474,1.801,3545.0,3544.8,0.56414]
[1754274308673,1.801,3544.8,3544.7,4.50457647]
[1754274308873,3.4736,3544.8,3544.7,4.50457647]
[1754274309769,3.4736,3544.8,3544.7,6.14407647]
[1754274310788,3.4736,3544.8,3544.7,6.78867647]